bitfinex/quotes_SOLUSD_20240809
["timestamp","ask_amount","ask_price","bid_price","bid_amount"]
[1723229590185,20.0,153.44,153.35,28.54]
[1723229591692,35.0576,153.43,153.33,28.54]
[1723229591894,22.8819,153.42,153.33,28.54]
[1723229592106,28.54,153.41,153.31,28.54]
[1723229592328,45.0,153.4,153.29,44.5994]
[1723229592803,51.5189,153.4,153.29,44.5994]
[1723229593509,34.5971,153.39,153.29,28.54]
[1723229594112,6.0571,153.39,153.29,28.54]
[1723229594605,71.5197,153.38,153.27,28.54]
[1723229594905,16.3044,153.36,153.27,28.54]
[1723229595087,16.3044,153.36,153.25,45.0909]
[1723229595289,16.3044,153.36,153.25,28.54]
[1723229595512,0.12549,153.34,153.23,28.54]
[1723229595690,6.4808,153.32,153.21,44.7271]
[1723229596210,0.12549,153.31,153.21,28.54]
[1723229596509,45.37647,153.31,153.21,28.54]
[1723229596707,15.6072,153.3,153.21,28.54]
[1723229596924,73.66549,153.29,153.19,28.54]
[1723229597301,6.76179,153.26,153.15,28.54]
[1723229597608,45.12549,153.25,153.15,28.54]
[1723229598001,6.6363,153.26,153.17,28.54]
[1723229598185,45.0,153.25,153.17,28.54]
[1723229600013,6.6363,153.26,153.17,28.54]
[1723229600191,6.6363,153.26,153.18,0.12549]
[1723229602414,6.6363,153.26,153.17,28.54]
[1723229602615,6.6363,153.26,153.19,28.54]
[1723229604205,6.6363,153.26,153.17,28.54]
[1723229604716,6.6363,153.26,153.18,1.4309132]
[1723229605022,6.6363,153.26,153.19,28.54]
[1723229605714,6.6363,153.26,153.18,0.12549]
[1723229607322,6.6363,153.26,153.18,1.43089055]
[1723229607822,6.6363,153.26,153.19,29.84538347]
[1723229608026,6.6363,153.26,153.2,0.12549]
[1723229608406,28.5866,153.3,153.21,28.54]
[1723229608727,26.5235,153.29,153.2,0.12549]
[1723229609222,20.0,153.29,153.2,0.12549]
[1723229609397,26.5235,153.29,153.2,0.12549]
[1723229609604,6.524,153.28,153.19,28.54]
[1723229609822,51.524,153.28,153.19,28.54]
[1723229610321,35.0645,153.27,153.17,28.54]
[1723229610522,28.66549,153.27,153.18,0.12549]
[1723229611219,0.12549,153.27,153.18,0.12549]
[1723229611422,20.0,153.27,153.21,28.54]
[1723229611722,48.54,153.29,153.19,28.54]
[1723229611924,0.25098,153.28,153.19,28.54]
[1723229612128,0.12549,153.28,153.19,28.54]
[1723229612310,0.25098,153.28,153.19,28.54]
[1723229612509,6.77498,153.28,153.19,28.54]
[1723229612717,45.0,153.27,153.19,28.54]
[1723229612915,45.25098,153.28,153.19,28.54]
[1723229613222,45.0,153.28,153.19,28.54]
[1723229613417,20.0,153.29,153.21,28.54]
[1723229614635,22.0635,153.3,153.23,28.54]
[1723229614840,16.5521,153.34,153.25,28.54]
[1723229615133,23.0735,153.34,153.25,28.54]
[1723229616233,16.5521,153.34,153.25,28.54]
[1723229616821,16.5521,153.34,153.27,28.54]
[1723229617441,16.5521,153.34,153.25,28.54]
[1723229617642,6.5218,153.33,153.25,28.54]
[1723229618027,23.0736,153.34,153.25,28.54]
[1723229618342,16.5521,153.34,153.25,28.54]
[1723229619062,16.5521,153.34,153.27,28.54]
[1723229620469,16.5521,153.34,153.28,1.30466865]
[1723229620661,16.5521,153.34,153.29,28.54]
[1723229621345,23.0115,153.38,153.29,28.54]
[1723229621963,16.4918,153.38,153.27,28.54]
[1723229622143,6.5211,153.35,153.27,28.54]
[1723229622344,35.0611,153.35,153.25,28.54]
[1723229622565,6.64609,153.36,153.27,28.54]
[1723229622862,35.0602,153.37,153.27,28.54]
[1723229623062,20.0,153.36,153.29,28.54]
[1723229623252,20.0,153.37,153.29,28.54]
[1723229625869,26.5202,153.37,153.29,28.54]
[1723229626159,20.0,153.37,153.29,28.54]
[1723229626454,20.0,153.37,153.27,28.54]
[1723229626775,45.0,153.36,153.27,28.54]
[1723229627872,28.91647,153.35,153.25,28.54]
[1723229628052,48.79098,153.35,153.25,28.54]
[1723229628252,20.0,153.35,153.25,28.54]
[1723229628569,0.12549,153.34,153.25,28.54]
[1723229628767,51.77238,153.34,153.25,28.54]
[1723229629778,45.25098,153.34,153.25,28.54]
[1723229630977,45.0,153.34,153.25,28.54]
[1723229631174,20.0,153.35,153.27,28.54]
[1723229631383,26.5207,153.36,153.27,28.54]
[1723229631561,45.0,153.35,153.27,28.54]
[1723229631761,20.0,153.34,153.27,28.54]
[1723229632268,16.4918,153.38,153.27,28.54]
[1723229632471,16.4918,153.38,153.29,28.54]
[1723229632668,16.4918,153.38,153.26,0.37647]
[1723229632669,16.4918,153.38,153.31,28.54]
[1723229632875,23.0115,153.38,153.29,28.54]
[1723229633678,20.0,153.37,153.29,28.54]
[1723229637378,26.5203,153.37,153.29,28.54]
[1723229640891,20.0,153.37,153.29,28.54]
[1723229644292,20.0,153.37,153.31,28.54]
[1723229645080,23.0115,153.38,153.31,28.54]
[1723229645389,16.4918,153.38,153.31,28.54]
[1723229648590,16.4918,153.38,153.33,28.54]
[1723229649905,16.4918,153.38,153.34,19.61]
[1723229650505,6.2359,153.39,153.36,19.61]
[1723229650910,283.02478336,153.47,153.38,19.61]
[1723229651101,23.1198,153.46,153.4,19.61]
[1723229651286,6.519,153.4,153.3,15.8544]
[1723229651611,23.1231,153.39,153.33,19.61]
[1723229651796,16.6034,153.39,153.3,44.4644]
[1723229651993,16.6034,153.39,153.32,28.61]
[1723229652313,16.6034,153.39,153.34,28.61]
[1723229652608,6.2975,153.4,153.36,28.61]
[1723229653015,6.2975,153.4,153.34,28.61]
[1723229653624,6.518,153.42,153.34,28.61]
[1723229654194,16.6034,153.43,153.34,28.61]
[1723229654393,16.6034,153.43,153.36,28.61]
[1723229654701,16.6034,153.43,153.38,28.61]
[1723229654900,16.6034,153.43,153.4,28.61]
[1723229655205,6.5155,153.48,153.4,28.61]
[1723229655412,6.5163,153.46,153.4,28.61]
[1723229655599,28.61,153.47,153.38,28.61]
[1723229656411,20.0,153.46,153.38,28.61]
[1723229656614,6.516,153.47,153.38,28.61]
[1723229656817,20.0,153.46,153.38,28.61]
[1723229657916,20.0,153.49,153.42,28.61]
[1723229658302,26.5151,153.49,153.42,28.61]
[1723229659005,6.5157,153.48,153.42,28.61]
[1723229659311,20.0,153.47,153.4,28.61]
[1723229659709,6.5156,153.48,153.4,28.61]
[1723229659916,20.0,153.47,153.4,28.61]
[1723229660311,26.5159,153.47,153.4,28.61]
[1723229660704,20.0,153.47,153.4,28.61]
[1723229662125,20.0,153.48,153.4,28.61]
[1723229662318,26.5155,153.48,153.4,28.61]
[1723229663305,20.0,153.48,153.4,28.61]
[1723229663505,26.5156,153.48,153.4,28.61]
[1723229664627,20.0,153.48,153.4,28.61]
[1723229665201,20.0,153.48,153.41,1.30350587]
[1723229665405,20.0,153.48,153.4,28.61]
[1723229665609,6.5163,153.46,153.4,28.61]
[1723229665810,6.5163,153.46,153.38,28.61]
[1723229666018,65.12549,153.45,153.36,28.61]
[1723229666221,6.5177,153.43,153.34,28.61]
[1723229666528,6.5173,153.44,153.34,28.61]
[1723229666902,71.64229,153.45,153.34,28.61]
[1723229667123,71.64229,153.45,153.36,28.61]
[1723229669232,71.64229,153.45,153.37,30.0]
[1723229669536,71.64229,153.45,153.36,28.61]
[1723229670838,15.33159,153.44,153.35,0.12549]
[1723229671138,77.8236,153.43,153.34,28.61]
[1723229671738,97.4336,153.43,153.35,19.61]
[1723229673144,90.9157,153.43,153.35,19.61]
[1723229673430,97.4334,153.43,153.35,19.61]
[1723229673629,26.129,153.4,153.33,19.61]
[1723229673807,19.61,153.39,153.31,19.61]
[1723229674013,26.1294,153.39,153.31,19.61]
[1723229674509,25.9487,153.36,153.28,19.61]
[1723229674931,19.61,153.35,153.28,19.61]
[1723229675535,25.9487,153.36,153.28,19.61]
[1723229675740,25.9487,153.36,153.29,19.61]
[1723229677038,6.3387,153.36,153.29,19.61]
[1723229677222,6.3387,153.36,153.3,19.61]
[1723229678648,19.61,153.34,153.27,19.61]
[1723229678817,19.61,153.34,153.26,19.61]
[1723229679024,19.61,153.33,153.26,19.61]
[1723229679419,0.12549,153.35,153.28,19.61]
[1723229679642,65.37647,153.35,153.29,19.61]
[1723229679819,65.37647,153.35,153.27,28.62]
[1723229681140,65.25098,153.35,153.27,28.62]
[1723229681639,20.0,153.35,153.29,28.62]
[1723229681826,6.3387,153.36,153.29,28.62]
[1723229682544,6.3387,153.36,153.23,6.3804]
[1723229682545,16.413,153.37,153.33,28.62]
[1723229683221,6.3934,153.4,153.33,28.62]
[1723229684430,6.3934,153.4,153.35,28.62]
[1723229685626,6.3934,153.4,153.35,58.62]
[1723229686143,6.3934,153.4,153.35,28.62]
[1723229686440,15.1287,153.41,153.35,28.62]
[1723229687241,15.1287,153.41,153.36,1.30404013]
[1723229687452,15.1287,153.41,153.35,28.62]
[1723229692958,6.3934,153.44,153.35,28.62]
[1723229693131,6.3934,153.44,153.37,28.62]
[1723229693743,6.3934,153.44,153.39,28.62]
[1723229694052,15.1287,153.45,153.39,28.62]
[1723229694949,6.3934,153.48,153.41,28.62]
[1723229695555,6.3934,153.48,153.39,28.62]
[1723229695845,6.5164,153.46,153.37,28.62]
[1723229696652,6.76698,153.47,153.37,28.62]
[1723229696949,45.0,153.46,153.37,28.62]
[1723229697441,0.25098,153.45,153.37,28.62]
[1723229702161,35.13889,153.48,153.34,15.0277]
[1723229702162,6.3934,153.48,153.41,28.62]
[1723229703557,6.3934,153.48,153.39,28.62]
[1723229703860,41.5289,153.48,153.39,28.62]
[1723229704365,0.25098,153.47,153.39,28.62]
[1723229704534,65.37647,153.47,153.39,28.62]
[1723229705039,65.12549,153.47,153.39,28.62]
[1723229705255,6.3934,153.48,153.41,28.62]
[1723229707343,0.25098,153.47,153.39,28.62]
[1723229707642,45.25098,153.47,153.39,28.62]
[1723229710374,6.3934,153.48,153.41,28.62]
[1723229715781,6.3934,153.48,153.43,19.59]
[1723229716174,6.3934,153.48,153.39,1.30352053]
[1723229716381,15.1287,153.49,153.44,19.59]
[1723229716543,15.1287,153.49,153.43,19.59]
[1723229716745,15.1287,153.49,153.42,19.59]
[1723229717077,15.1287,153.49,153.4,19.59]
[1723229717078,19.59,153.47,153.4,19.59]
[1723229717441,19.59,153.47,153.39,19.59]
[1723229717643,19.59,153.47,153.4,19.59]
[1723229717946,15.1287,153.49,153.44,19.59]
[1723229718149,15.1287,153.49,153.45,19.59]
[1723229718868,15.1287,153.49,153.47,19.59]
[1723229719072,6.5703,153.52,153.48,19.59]
[1723229719442,6.5703,153.52,153.47,19.59]
[1723229719879,19.59,153.5,153.42,19.59]
[1723229720051,26.1061,153.47,153.4,19.59]
[1723229720872,19.59,153.48,153.4,19.59]
[1723229721173,45.0,153.47,153.41,19.59]
[1723229722472,0.25098,153.49,153.43,19.59]
[1723229722773,19.59,153.51,153.44,19.59]
[1723229723479,19.59,153.5,153.42,19.59]
[1723229723664,6.517,153.45,153.36,34.7495]
[1723229723967,34.895,153.46,153.36,28.59]
[1723229724368,45.0,153.45,153.36,28.59]
[1723229725373,6.305,153.46,153.4,28.59]
[1723229725588,15.0891,153.47,153.42,28.59]
[1723229726181,15.0891,153.47,153.4,28.59]
[1723229726356,6.517,153.45,153.36,28.59]
[1723229726551,0.12549,153.46,153.38,28.59]
[1723229726769,20.0,153.46,153.38,28.59]
[1723229727877,0.25098,153.45,153.38,28.59]
[1723229728072,45.25098,153.45,153.36,28.59]
[1723229730173,20.0,153.46,153.36,28.59]
[1723229730382,20.0,153.46,153.38,28.59]
[1723229730877,26.5164,153.46,153.38,28.59]
[1723229731384,20.0,153.46,153.38,28.59]
[1723229733364,26.5164,153.46,153.38,28.59]
[1723229733681,34.895,153.44,153.34,28.59]
[1723229733974,0.12549,153.43,153.34,28.59]
[1723229735757,34.895,153.44,153.34,28.59]
[1723229735979,6.305,153.44,153.36,28.59]
[1723229736369,6.305,153.44,153.38,28.59]
[1723229737981,6.5183,153.42,153.34,28.59]
[1723229738185,15.9236,153.41,153.32,28.59]
[1723229739287,15.9236,153.41,153.38,28.59]
[1723229739474,6.305,153.44,153.38,28.59]
[1723229739869,6.305,153.44,153.36,28.59]
[1723229740276,6.305,153.44,153.38,28.59]
[1723229741481,6.305,153.44,153.36,28.59]
[1723229741677,12.8222,153.44,153.36,28.59]
[1723229741877,16.4879,153.41,153.29,22.5101965]
[1723229742076,16.4879,153.41,153.28,28.59]
[1723229742077,0.12549,153.38,153.28,28.59]
[1723229742392,35.1101,153.37,153.28,28.59]
[1723229742705,15.7516,153.36,153.26,28.59]
[1723229743290,15.7516,153.36,153.28,28.59]
[1723229744281,15.7516,153.36,153.3,28.59]
[1723229744797,15.7516,153.36,153.28,28.59]
[1723229747479,28.71549,153.35,153.24,28.59]
[1723229747679,45.12549,153.34,153.24,28.59]
[1723229747986,45.12549,153.34,153.22,38.80326963]
[1723229747987,34.72349,153.33,153.22,38.80326963]
[1723229748190,0.25098,153.32,153.22,28.59]
[1723229748384,0.25098,153.32,153.2,6.0712]
[1723229748385,15.8442,153.3,153.2,28.59]
[1723229748691,48.71549,153.29,153.2,28.59]
[1723229748871,100.23909,153.29,153.2,28.59]
[1723229749076,93.71549,153.29,153.2,28.59]
[1723229749617,20.0,153.29,153.22,28.59]
[1723229749916,15.8442,153.3,153.22,36.82]
[1723229750713,6.008,153.33,153.26,36.82]
[1723229750916,6.008,153.33,153.27,1.30468527]
[1723229751408,6.008,153.33,153.27,1.30470313]
[1723229751710,16.3078,153.34,153.28,36.94549]
[1723229751920,16.3078,153.34,153.28,37.07098]
[1723229752204,6.4864,153.37,153.28,37.07098]
[1723229752205,6.4864,153.37,153.3,36.82]
[1723229752381,6.4864,153.37,153.31,1.30428699]
[1723229752583,6.4864,153.37,153.3,36.82]
[1723229754513,6.4864,153.37,153.31,1.30437608]
[1723229754687,6.4864,153.37,153.32,36.82]
[1723229754877,6.4864,153.37,153.3,36.82]
[1723229756298,16.3673,153.38,153.32,36.82]
[1723229756609,16.3673,153.38,153.34,36.82]
[1723229757811,16.3673,153.38,153.32,36.82]
[1723229758182,16.3673,153.38,153.33,1.42961822]
[1723229758410,6.565,153.41,153.34,36.82]
[1723229759815,6.565,153.41,153.36,36.82]
[1723229760184,15.7286,153.42,153.37,1.30377927]
[1723229760404,15.7286,153.42,153.36,36.82]
[1723229761309,6.565,153.45,153.38,36.82]
[1723229761614,15.9665,153.46,153.4,36.82]
[1723229762309,15.9665,153.46,153.38,36.82]
[1723229762485,15.9665,153.46,153.36,36.82]
[1723229762909,6.5176,153.43,153.34,36.82]
[1723229763121,0.12549,153.44,153.34,36.82]
[1723229763328,0.12549,153.42,153.32,36.82]
[1723229763621,6.3303,153.41,153.32,36.82]
[1723229763919,6.3303,153.41,153.34,36.82]
[1723229766692,6.3303,153.41,153.35,0.12549]
[1723229767298,6.0042,153.45,153.4,36.82]
[1723229767615,6.0042,153.45,153.38,36.82]
[1723229769515,6.0042,153.45,153.36,36.82]
[1723229769699,6.0042,153.45,153.37,0.12549]
[1723229770410,6.0042,153.45,153.4,36.82]
[1723229772617,15.9665,153.46,153.42,36.82]
[1723229773116,15.9665,153.46,153.4,36.82]
[1723229773798,15.9665,153.46,153.42,28.57]
[1723229775312,6.2255,153.49,153.44,28.57]
[1723229775697,6.2255,153.49,153.45,36.71]
[1723229776224,6.2255,153.49,153.43,36.71]
[1723229778316,6.2255,153.49,153.44,1.30331661]
[1723229778493,6.2255,153.49,153.43,36.71]
[1723229779418,6.516,153.47,153.35,6.5494]
[1723229779627,15.8049,153.46,153.37,36.71]
[1723229780903,15.8049,153.46,153.38,0.12549]
[1723229781223,15.8049,153.46,153.37,36.71]
[1723229781426,15.8049,153.46,153.35,36.71]
[1723229782326,15.8049,153.46,153.37,36.71]
[1723229782499,15.8049,153.46,153.39,36.71]
[1723229783625,15.8049,153.46,153.34,0.12549]
[1723229783814,15.8049,153.46,153.37,36.71]
[1723229784123,15.8049,153.46,153.38,0.12549]
[1723229787746,15.8049,153.46,153.37,36.71]
[1723229787914,6.1545,153.45,153.35,36.71]
[1723229788232,6.1545,153.45,153.36,20.0]
[1723229788401,0.12549,153.44,153.35,36.71]
[1723229789622,6.1545,153.45,153.37,36.71]
[1723229790904,0.12549,153.44,153.35,36.71]
[1723229791319,0.25098,153.44,153.35,36.71]
[1723229791532,0.12549,153.42,153.3,36.71]
[1723229791838,6.1545,153.41,153.34,36.71]
[1723229792244,6.1545,153.41,153.32,36.71]
[1723229792538,0.25098,153.4,153.3,36.71]
[1723229792739,16.5471,153.39,153.3,36.71]
[1723229793445,45.12549,153.38,153.28,36.71]
[1723229793648,0.25098,153.37,153.28,36.71]
[1723229794112,0.25098,153.37,153.29,20.0]
[1723229794312,0.25098,153.37,153.28,36.71]
[1723229795421,6.4677,153.36,153.28,36.71]
[1723229795726,35.95269,153.35,153.24,36.71]
[1723229795936,81.20367,153.35,153.24,36.71]
[1723229796246,36.83549,153.34,153.22,36.71]
[1723229796422,21.9744,153.32,153.22,36.71]
[1723229797335,21.9744,153.32,153.24,36.71]
[1723229798549,0.12549,153.31,153.22,36.71]
[1723229798841,45.50196,153.31,153.22,36.71]
[1723229799234,0.12549,153.29,153.2,36.71]
[1723229799431,45.25098,153.29,153.2,36.71]
[1723229799955,20.0,153.3,153.22,36.71]
[1723229800129,20.12549,153.31,153.22,36.71]
[1723229800326,20.0,153.31,153.22,36.71]
[1723229800555,22.22538,153.32,153.24,36.71]
[1723229801060,21.9744,153.32,153.24,36.71]
[1723229801243,45.25098,153.31,153.24,36.71]
[1723229801558,45.25098,153.31,153.22,36.71]
[1723229803763,45.25098,153.31,153.23,28.64]
[1723229804134,0.12549,153.3,153.23,28.64]
[1723229804459,0.12549,153.3,153.18,0.12549]
[1723229804753,0.12549,153.3,153.21,28.64]
[1723229805659,45.25098,153.31,153.23,28.64]
[1723229807137,45.25098,153.31,153.25,28.64]
[1723229808637,45.25098,153.31,153.23,28.64]
[1723229809055,0.12549,153.3,153.21,28.64]
[1723229809565,6.5753,153.27,153.19,28.64]
[1723229810150,6.5753,153.27,153.15,10.21759955]
[1723229810463,45.12549,153.26,153.18,28.64]
[1723229811444,6.5753,153.27,153.2,28.64]
[1723229812265,45.12549,153.26,153.2,28.64]
[1723229812566,6.70079,153.27,153.2,28.64]
[1723229812742,6.5753,153.27,153.24,28.64]
[1723229813963,16.0211,153.29,153.24,28.64]
[1723229814177,16.0211,153.29,153.16,0.12549]
[1723229814359,16.0211,153.29,153.25,28.64]
[1723229814751,16.0211,153.29,153.27,28.64]
[1723229814953,16.0211,153.29,153.19,15.6298]
[1723229815177,1.30505453,153.28,153.23,28.64]
[1723229815475,16.0211,153.29,153.23,28.64]
[1723229818472,16.0211,153.29,153.24,28.64]
[1723229819062,16.0211,153.29,153.26,28.64]
[1723229819470,16.0211,153.29,153.28,28.64]
[1723229819779,6.4896,153.31,153.28,28.64]
[1723229821654,6.4896,153.31,153.21,6.6291]
[1723229821655,6.4896,153.31,153.22,0.12549]
[1723229821881,6.4896,153.31,153.24,28.64]
[1723229821882,1.30505453,153.3,153.24,28.64]
[1723229822058,1.30505453,153.29,153.24,28.64]
[1723229822259,1.30505453,153.29,153.22,28.64]
[1723229822682,15.6031,153.28,153.2,28.64]
[1723229822857,1.30505453,153.27,153.2,28.64]
[1723229823160,1.30505453,153.26,153.2,28.64]
[1723229823485,15.6031,153.28,153.2,28.64]
[1723229823654,1.30505453,153.27,153.2,28.64]
[1723229823863,15.6031,153.28,153.2,28.64]
[1723229824185,15.6031,153.28,153.24,28.64]
[1723229824389,1.30505453,153.27,153.22,28.64]
[1723229825071,1.30505453,153.26,153.22,28.64]
[1723229825283,15.6031,153.28,153.2,28.64]
[1723229825473,0.12549,153.27,153.18,28.64]
[1723229825652,0.12549,153.26,153.18,28.64]
[1723229825855,0.25098,153.26,153.12,22.7022]
[1723229826063,0.25098,153.26,153.18,28.64]
[1723229827277,0.12549,153.27,153.2,28.64]
[1723229827780,15.6031,153.28,153.22,28.64]
[1723229827992,1.30505453,153.27,153.2,28.64]
[1723229828174,1.30505453,153.26,153.18,28.64]
[1723229829060,45.12549,153.27,153.2,28.64]
[1723229829267,15.72859,153.28,153.2,28.64]
[1723229830079,46.68152453,153.27,153.19,28.64]
[1723229830281,0.12549,153.27,153.19,28.64]
[1723229830456,1.30505453,153.27,153.19,28.64]
[1723229830659,15.6031,153.28,153.19,28.64]
[1723229830991,1.30505453,153.27,153.19,28.64]
[1723229831188,46.30505453,153.27,153.19,28.64]
[1723229831660,15.6031,153.28,153.21,28.64]
[1723229831860,1.30505453,153.27,153.21,28.64]
[1723229832057,15.6031,153.28,153.19,28.64]
[1723229832285,1.30505453,153.26,153.19,28.64]
[1723229832867,45.12549,153.27,153.19,28.64]
[1723229833772,15.6031,153.28,153.19,28.64]
[1723229833970,15.6031,153.28,153.23,28.64]
[1723229834174,15.6031,153.28,153.2,0.12549]
[1723229834382,15.6031,153.28,153.24,28.64]
[1723229836891,15.6031,153.28,153.26,28.64]
[1723229837187,6.4896,153.31,153.26,28.64]
[1723229837371,6.4896,153.31,153.28,28.64]
[1723229837893,16.2835,153.32,153.3,28.64]
[1723229838298,6.5723,153.35,153.3,28.64]
[1723229838607,1.30505453,153.34,153.28,28.64]
[1723229838977,6.5723,153.35,153.28,28.64]
[1723229840303,6.5723,153.35,153.3,28.64]
[1723229843986,16.2835,153.36,153.32,28.64]
[1723229844701,1.30505453,153.35,153.3,28.64]
[1723229845279,16.2835,153.36,153.3,28.64]
[1723229845695,16.2835,153.36,153.32,28.64]
[1723229846085,6.5723,153.39,153.34,28.64]
[1723229846287,6.5723,153.39,153.28,30.06985644]
[1723229846288,6.5723,153.39,153.36,28.64]
[1723229846679,6.5723,153.39,153.34,28.64]
[1723229849595,6.5723,153.39,153.36,28.64]
[1723229849907,16.2835,153.4,153.36,28.64]
[1723229852197,16.2835,153.4,153.34,28.64]
[1723229854092,16.2835,153.4,153.36,28.64]
[1723229860592,16.2835,153.4,153.38,28.64]
[1723229860798,6.5723,153.43,153.38,28.64]
[1723229862708,6.5723,153.43,153.4,28.64]
[1723229863422,6.5723,153.43,153.38,28.64]
[1723229864606,15.1046,153.44,153.4,28.64]
[1723229867428,6.424,153.47,153.42,28.64]
[1723229867629,15.2779,153.48,153.44,28.64]
[1723229867924,15.2779,153.48,153.46,28.64]
[1723229868418,15.2779,153.48,153.44,28.64]
[1723229868625,15.2779,153.48,153.42,28.64]
[1723229868799,7.82095453,153.47,153.4,28.64]
[1723229869332,6.5163,153.46,153.4,28.64]
[1723229869496,15.2779,153.48,153.38,28.64]
[1723229869497,7.82185453,153.45,153.38,28.64]
[1723229869703,6.424,153.44,153.36,28.64]
[1723229869901,1.30505453,153.43,153.36,28.64]
[1723229870211,1.30505453,153.42,153.36,28.64]
[1723229871104,1.30505453,153.41,153.36,28.64]
[1723229871302,1.30505453,153.43,153.36,28.64]
[1723229871507,1.30505453,153.42,153.36,28.64]
[1723229872413,1.30505453,153.41,153.36,28.64]
[1723229872625,1.30505453,153.43,153.36,28.64]
[1723229872830,1.30505453,153.42,153.36,28.64]
[1723229873813,1.30505453,153.41,153.36,28.64]
[1723229874136,1.30505453,153.43,153.36,28.64]
[1723229874641,1.30505453,153.42,153.36,28.64]
[1723229876133,6.424,153.44,153.36,28.64]
[1723229876442,6.424,153.44,153.38,28.64]
[1723229876813,1.30505453,153.43,153.38,28.64]
[1723229877616,6.424,153.44,153.38,28.64]
[1723229877817,6.424,153.44,153.4,28.64]
[1723229878131,7.72905453,153.44,153.4,28.64]
[1723229878338,6.424,153.44,153.4,28.64]
[1723229879027,15.2779,153.48,153.42,28.64]
[1723229879028,21.4012,153.48,153.42,28.64]
[1723229881732,21.4012,153.48,153.44,28.64]
[1723229882039,15.2779,153.48,153.46,28.64]
[1723229882410,15.2779,153.48,153.44,28.64]
[1723229887837,15.2779,153.48,153.45,19.59]
[1723229888043,15.2779,153.48,153.46,19.59]
[1723229889440,15.2779,153.48,153.47,19.59]
[1723229889852,6.081,153.52,153.47,19.59]
[1723229889853,21.1423,153.52,153.47,19.59]
[1723229890034,21.1423,153.52,153.48,19.59]
[1723229890732,1.30505453,153.51,153.48,19.59]
[1723229890938,1.30505453,153.51,153.49,19.59]
[1723229891239,21.1423,153.52,153.49,19.59]
[1723229891828,1.30505453,153.51,153.49,19.59]
[1723229892050,21.1423,153.52,153.48,19.59]
[1723229892269,21.1423,153.52,153.36,16.36]
[1723229892270,1.30505453,153.51,153.36,16.36]
[1723229892554,21.8675,153.46,153.39,19.59]
[1723229892727,47.974,153.46,153.32,24.49731652]
[1723229892925,19.59,153.45,153.38,19.59]
[1723229893121,0.12549,153.45,153.38,19.59]
[1723229893326,45.25098,153.45,153.39,19.59]
[1723229893540,21.8675,153.46,153.39,19.59]
[1723229893828,15.6542,153.49,153.44,19.59]
[1723229894129,15.6542,153.49,153.46,19.59]